[Event "Super United Croatia GCT Blitz 2022"]
[Site "Zagreb"]
[Date "2022.07.24"]
[Round "18"]
[White "Firouzja, Alireza"]
[Black "Van Foreest, Jorden"]
[Result "1-0"]
[ECO "D12"]
[WhiteElo "2793"]
[BlackElo "2678"]
[Annotator "TA"]
[PlyCount "167"]
[EventDate "2022.07.20"]
[EventType "tourn"]
[EventCountry "CRO"]
[SourceTitle "playchess.com"]
[Source "ChessBase"]
[SourceQuality "1"]
[TimeControl "300+2"]

{[%evp 12,167,25,23,27,23,38,-49,36,32,29,17,54,35,35,22,37,4,47,31,46,25,25,20,21,22,21,6,8,6,15,0,0,0,0,0,0,0,0,0,33,0,0,-118,-119,-117,-123,-155,-86,-220,-231,-233,-251,-243,-171,-174,-98,-270,-276,-254,260,0,0,0,0,0,0,0,0,0,68,67,67,67,71,58,97,97,98,73,78,29,34,0,85,66,81,75,206,0,0,0,0,0,2,2,4,4,5,9,28,0,0,0,39,39,42,43,43,43,97,97,97,97,97,97,97,97,97,97,29974,29975,29975,29976,29976,29976,29976,29977,29977,29978,29979,0,29976,29975,29975,29976,29977,0,29979,29980,29980,29981,29981,29982,29984,29984,29983,29983,29983,29984,29984,29985,29985,29986,29990,29991,29994,29995]} 1. d4 {[%emt 0:00:01]} d5 {[%emt 0:00:01]} 2. c4 {[%emt 0:00:04]} c6 {[%emt 0:00:01]} 3. Nf3 {[%emt 0:00:02]} Nf6 {[%emt 0:00:01]} 4. e3 {[%emt 0:00:00]} Bf5 {[%emt 0:00:03][%cal Bc8f5,Bf5e4,Be4g6][%mdl 32]} 5. Nc3 {[%emt 0:00:07]} e6 {[%emt 0:00:01]} 6. Nh4 {[%emt 0:00:04]} Be4 {[%emt 0:00:11]} 7. f3 {[%emt 0:00:03]} Bg6 {[%emt 0:00:01] D12: Slav Defence: 3 Nf3 Nf6 4 e3 Bf5.} 8. Qb3 {[%emt 0:00:05]} Qb6 {[%emt 0:00:03]} 9. Bd2 {[%emt 0:00:07]} (9. Qxb6 $14 axb6 10. Nxg6 hxg6 11. Kf2) 9... Nbd7 {[%emt 0:00:02]} (9... Qxb3 $1 $15 10. axb3 Bc2) 10. O-O-O {[%emt 0:00:23]} Qxb3 {[%emt 0:00:05]} 11. axb3 {[%emt 0:00:02]} Bb4 {[%emt 0:00:01]} 12. Nxg6 {[%emt 0:00:21]} hxg6 {[%emt 0:00:03] [#]} 13. Be2 $146 {[%emt 0:00:06]} ({Predecessor:} 13. Kc2 O-O-O 14. Bd3 a6 15. Be1 Bd6 16. h4 Ne8 17. e4 Nc7 18. Bf2 Be7 19. g4 {0-1 (74) Maghsoodloo,P (2716)-Harikrishna,P (2701) Prague 2022}) 13... O-O-O {[%emt 0:00:09]} 14. Kc2 {[%emt 0:00:04]} g5 {[%emt 0:00:37]} 15. h3 {[%emt 0:00:06]} Bd6 {[%emt 0:00:09]} 16. Be1 {[%emt 0:00:38]} Nh5 {[%emt 0:00:13]} 17. Bd3 {[%emt 0:00:04]} Bg3 {[%emt 0:00:03]} 18. Bd2 {[%emt 0:00:01]} Bc7 {[%emt 0:00:02]} 19. Ne2 {[%emt 0:00:13]} Ng3 {[%emt 0:00:04]} 20. Nxg3 {[%emt 0:00:02]} Bxg3 {[%emt 0:00:02]} 21. Rhf1 {[%emt 0:00:22]} Nf6 {[%emt 0:00:10][%cal Bd7f6,Bf6h5,Bh5f4,Bf4h5,Bh5g3][%mdl 32]} 22. Bc3 {[%emt 0:00:35]} Nh5 {[%emt 0:00:01]} 23. Rd2 {[%emt 0:00:32]} Bc7 {[%emt 0:00:10]} 24. Ra1 {[%emt 0:00:02]} a6 {[%emt 0:00:01]} 25. Rf2 {[%emt 0:00:08]} f5 {[%emt 0:00:45]} 26. e4 {[%emt 0:00:22]} Nf4 {[%emt 0:00:05]} 27. Bf1 {[%emt 0:00:02]} (27. exf5 $11 Nxd3 28. Kxd3 exf5 29. Re2) 27... dxe4 $17 {[%emt 0:00:14]} 28. fxe4 {[%emt 0:00:01]} fxe4 {[%emt 0:00:21]} 29. g3 {[%emt 0:00:39]} e3 {[%emt 0:00:09]} (29... Nh5 $142 30. Bg2 Nxg3) 30. Rh2 {[%emt 0:00:12]} (30. Rf3 $17 {was forced.} e2 31. gxf4 exf1=N 32. Raxf1 gxf4 33. Rg1) 30... Nh5 $1 $19 {[%emt 0:00:02]} 31. Re2 {[%emt 0:00:01]} Nxg3 {[%emt 0:00:06]} 32. Rxe3 Rdf8 {[%emt 0:00:07]} 33. Bd3 {[%emt 0:00:07] [#]} Rxh3 {[%emt 0:00:04]} (33... Rf2+ $1 $19 34. Kb1 Kd7) 34. Rxe6 $2 {[%emt 0:00:02]} (34. Rg1 $17 {was called for.}) 34... Rh2+ {[%emt 0:00:02]} 35. Kb1 Rf1+ $4 {[%emt 0:00:05][%mdl 8192]} 36. Ka2 $2 {[%emt 0:00:01]} (36. Bxf1 $18 Nxf1 37. Rg6) 36... Rxa1+ $11 {[%emt 0:00:01]} 37. Kxa1 {[%emt 0:00:00]} Rh1+ {[%emt 0:00:13]} 38. Ka2 {[%emt 0:00:02]} Rd1 {[%emt 0:00:06]} 39. Bc2 {[%emt 0:00:01]} Rc1 {[%emt 0:00:10]} 40. Bb1 {[%emt 0:00:09]} g4 {[%emt 0:00:13]} (40... Rf1 $11) 41. Re8+ $1 $14 {[%emt 0:00:14]} Kd7 {[%emt 0:00:06]} 42. Rg8 {[%emt 0:00:01]} Ne2 {[%emt 0:00:13]} 43. Rxg7+ {[%emt 0:00:03]} Kc8 {[%emt 0:00:02]} 44. Rg8+ {[%emt 0:00:05]} (44. Rxg4 $6 Nxc3+ 45. bxc3 Rxc3 $11) 44... Kd7 {[%emt 0:00:02]} 45. Bd2 {[%emt 0:00:04] And now Bf5+ would win.} Rf1 {[%emt 0:00:12] Prevents Bf5+.} 46. Rg7+ {[%emt 0:00:05]} (46. Bd3 $16 Rf2 47. Rxg4) 46... Kc8 $11 {[%emt 0:00:02]} 47. Rg8+ {[%emt 0:00:03]} ({Don't play} 47. Rxg4 Nc1+ 48. Bxc1 Rxc1 $16) ({Better is} 47. Bd3 $14 Nc1+ 48. Bxc1 Rxc1 49. Rxg4) 47... Kd7 $1 $16 {[%emt 0:00:01]} 48. Rxg4 {[%emt 0:00:03]} Bf4 {[%emt 0:00:00]} 49. Rg7+ {[%emt 0:00:03]} Kc8 {[%emt 0:00:02]} (49... Ke6 $16 50. Bxf4 Rxf4) 50. Bd3 $2 {[%emt 0:00:06]} (50. Rf7 $18) 50... Bxd2 $11 {[%emt 0:00:03]} 51. Bxe2 {[%emt 0:00:01][%mdl 4096] Endgame KRB-KRB} Rf2 {[%emt 0:00:01]} 52. Re7 {[%emt 0:00:01]} Kd8 {[%emt 0:00:02]} 53. Re4 {[%emt 0:00:02]} Bb4 {[%emt 0:00:02]} 54. Kb1 {[%emt 0:00:01]} Bd6 {[%emt 0:00:04]} 55. Kc2 {[%emt 0:00:02]} Rf4 {[%emt 0:00:01]} 56. Kd3 {[%emt 0:00:03]} Rxe4 {[%emt 0:00:01]} 57. Kxe4 {[%emt 0:00:01] KB-KB} c5 {[%emt 0:00:01]} 58. Kd5 {[%emt 0:00:01][%csl LRc5,LRd6]} Be7 {[%emt 0:00:17]} 59. dxc5 {[%emt 0:00:01]} a5 {[%emt 0:00:03]} 60. c6 {[%emt 0:00:05]} Kc7 {[%emt 0:00:04]} ({Black should try} 60... b6 $14) 61. cxb7 $16 {[%emt 0:00:02]} Kxb7 {[%emt 0:00:01]} 62. c5 {[%emt 0:00:03]} Kc7 {[%emt 0:00:01]} 63. Kc4 {[%emt 0:00:02] White threatens b4 and mate.} Bf6 {[%emt 0:00:00]} 64. Kb5 {[%emt 0:00:00]} Bd4 {[%emt 0:00:03]} 65. Bf3 {[%emt 0:00:02]} Be3 $2 {[%emt 0:00:29][%mdl 8192] [#]} (65... Kd7 $16) 66. b4 $1 {[%emt 0:00:01]} axb4 {[%emt 0:00:02]} 67. Kxb4 {[%emt 0:00:01]} Kb8 {[%emt 0:00:17]} 68. Kb5 {[%emt 0:00:02]} Ka7 {[%emt 0:00:02]} 69. b4 {[%emt 0:00:02]} Bd2 {[%emt 0:00:01]} 70. Kc4 {[%emt 0:00:03]} Be1 {[%emt 0:00:04]} 71. Kb5 {[%emt 0:00:03]} Bd2 $1 {[%emt 0:00:01]} 72. Ka4 {[%emt 0:00:02]} Be3 {[%emt 0:00:02]} 73. Kb3 {[%emt 0:00:01]} Bd2 {[%emt 0:00:02]} 74. Kc4 {[%emt 0:00:00]} Be1 $1 {[%emt 0:00:02]} 75. b5 {[%emt 0:00:02][%cal Bb4b5,Bb5b6][%mdl 32] White mates.} Bf2 {[%emt 0:00:02]} 76. Kd5 {[%emt 0:00:04]} Kb8 {[%emt 0:00:05]} 77. Kc6 {[%emt 0:00:03]} Bg3 {[%emt 0:00:02]} 78. b6 {[%emt 0:00:02]} Bh4 {[%emt 0:00:01]} 79. Be4 {[%emt 0:00:03]} Be7 {[%emt 0:00:01]} 80. Kb5 {[%emt 0:00:02]} Bf6 {[%emt 0:00:01]} 81. Bg2 {[%emt 0:00:02]} Be7 {[%emt 0:00:02]} 82. c6 {[%emt 0:00:02][%cal Bc5c6,Bc6c7][%mdl 32]} Bd8 {[%emt 0:00:02]} 83. Bh3 {[%emt 0:00:02]} Ka8 {[%emt 0:00:05]} 84. c7 {[%emt 0:00:01] Never resign too early!  Weighted Error Value: White=0.32/Black=0.29 (precise)} 1-0

[Event "Super United Croatia GCT Blitz 2022"]
[Site "Zagreb"]
[Date "2022.07.24"]
[Round "18"]
[White "Nepomniachtchi, Ian"]
[Black "So, Wesley"]
[Result "1-0"]
[ECO "A34"]
[WhiteElo "2766"]
[BlackElo "2773"]
[Annotator "TA"]
[PlyCount "71"]
[EventDate "2022.07.20"]
[EventType "tourn"]
[EventCountry "CRO"]
[SourceTitle "playchess.com"]
[Source "ChessBase"]
[SourceQuality "1"]
[TimeControl "300+2"]

{[%evp 11,71,12,1,12,28,39,44,0,6,-38,-8,-11,-17,-46,-39,-36,-37,-77,-61,-106,-105,-102,-94,-88,-51,-51,-46,-52,-26,-14,45,-39,45,26,46,33,36,19,37,0,-17,-159,-156,-156,-154,-154,377,314,309,258,255,272,1218,1240,29990,29991,29991,29992,29992,29993,29993,29990]} 1. c4 {[%emt 0:00:01]} Nf6 {[%emt 0:00:01]} 2. g3 {[%emt 0:00:01]} c5 {[%emt 0:00:12]} 3. Bg2 {[%emt 0:00:02]} Nc6 {[%emt 0:00:01]} 4. Nf3 {[%emt 0:00:04]} d5 {[%emt 0:00:01]} 5. cxd5 {[%emt 0:00:09]} Nxd5 {[%emt 0:00:02]} 6. Nc3 {[%emt 0:00:01]} g6 {[%emt 0:00:02]} 7. h4 {[%emt 0:00:01][%cal Bh2h4,Bh4h5,Bh5h6][%mdl 32] A34: Symmetrical English: 2 Nc3, lines with ...d5.} Bg7 {[%emt 0:00:04]} 8. h5 {[%emt 0:00:01]} Bf5 {[%emt 0:00:21]} 9. h6 {[%emt 0:00:01] White is slightly better.} (9. Qb3 $5 {[%cal Rc3d5]} Ndb4 10. Kf1 $11) 9... Bf6 {[%emt 0:00:06]} 10. O-O {[%emt 0:00:07]} O-O {[%emt 0:00:03]} 11. Nh2 {[%emt 0:00:01] [#]} Nb6 $146 {[%emt 0:00:13]} ({Predecessor:} 11... Nxc3 12. dxc3 Qb6 13. e4 Rfd8 14. Qe2 Be6 15. f4 Na5 16. Qf2 Bc4 17. Re1 Bd3 {½-½ (58) Anton Guijarro,D (2681)-Grischuk,A (2777) Chess.com INT 2020}) 12. Ne4 {[%emt 0:00:11]} Bxe4 {[%emt 0:00:11]} 13. Bxe4 {[%emt 0:00:01]} Qd7 {[%emt 0:00:08]} 14. Bg2 {[%emt 0:00:26]} c4 {[%emt 0:00:13]} 15. Nf3 {[%emt 0:00:33][%cal Od2d4]} Rfd8 {[%emt 0:00:12]} 16. Qc2 {[%emt 0:00:01]} Rac8 {[%emt 0:00:07]} 17. Qe4 {[%emt 0:00:08]} Qd5 {[%emt 0:00:10]} 18. Qxd5 {[%emt 0:00:13]} Nxd5 {[%emt 0:00:01]} 19. Rb1 {[%emt 0:00:07]} Ncb4 {[%emt 0:00:22]} 20. a3 {[%emt 0:00:04]} Na2 {[%emt 0:00:04]} ({Black should try} 20... Nc6 $11) 21. e3 {[%emt 0:00:32]} ({Better is} 21. e4 $14) 21... a5 {[%emt 0:00:10]} (21... e6 $15) 22. d4 {[%emt 0:00:34]} c3 {[%emt 0:00:28]} 23. e4 {[%emt 0:00:10]} cxb2 {[%emt 0:00:30]} 24. Bxb2 {[%emt 0:00:05]} Ndc3 {[%emt 0:00:01]} 25. e5 {[%emt 0:00:21]} (25. Ra1 $14) 25... Nxb1 $11 {[%emt 0:00:14] Pair of Knights!} 26. exf6 {[%emt 0:00:03] [#]} (26. Rxb1 $11 Bh8 27. Ng5) 26... Nbc3 $1 $17 {[%emt 0:00:02]} 27. fxe7 {[%emt 0:00:02] [#]} Re8 {[%emt 0:00:01]} 28. Re1 {[%emt 0:00:38] Hoping for Nh2.} Na4 $2 {[%emt 0:00:00] [#] Loses the game.} (28... Rc7 $17 29. Ne5 Rcxe7) 29. d5 $1 {[%emt 0:00:11][%cal Bd4d5,Bd5d6][%mdl 32]} Nxb2 {[%emt 0:00:15]} 30. d6 {[%emt 0:00:00]} Nd3 {[%emt 0:00:01]} 31. Re3 {[%emt 0:00:11] aiming for d7.} Nc5 {[%emt 0:00:01]} (31... Rc1+ 32. Kh2 Nc5) 32. Ne5 $18 {[%emt 0:00:01] Strongly threatening Bd5.} b5 {[%emt 0:01:31]} 33. Bd5 {[%emt 0:00:01][%csl LRa2,LRf7] White mates.} Nc1 {[%emt 0:00:00]} 34. Bxf7+ {[%emt 0:00:02]} Kh8 {[%emt 0:00:01]} 35. Bxe8 {[%emt 0:00:10]} Rxe8 {[%emt 0:00:00]} 36. d7 {[%emt 0:00:14] Weighted Error Value: White=0.27 (precise) /Black=0.54} 1-0

[Event "Super United Croatia GCT Blitz 2022"]
[Site "Zagreb"]
[Date "2022.07.24"]
[Round "18"]
[White "Vachier-Lagrave, Maxime"]
[Black "Dominguez Perez, Leinier"]
[Result "1-0"]
[ECO "C42"]
[WhiteElo "2760"]
[BlackElo "2754"]
[Annotator "TA"]
[PlyCount "127"]
[EventDate "2022.07.20"]
[EventType "tourn"]
[EventCountry "CRO"]
[SourceTitle "playchess.com"]
[Source "ChessBase"]
[SourceQuality "1"]
[TimeControl "300+2"]

{[%evp 25,127,12,10,2,10,16,0,8,0,6,7,11,10,10,9,0,0,0,0,0,0,0,14,10,14,0,0,0,0,0,0,0,203,202,182,189,330,0,0,0,0,0,0,0,0,0,0,0,0,0,0,0,222,174,4132,0,18,18,18,18,32,0,0,0,0,0,0,0,0,0,0,0,707,936,870,661,2501,2060,2022,335,435,351,326,333,29978,29980,29981,3798,5206,6079,6079,6079,5663,5527,5120,5189,5120,5120,5106,5106,1576,1058,29988,29988]} 1. e4 {[%emt 0:00:01]} e5 {[%emt 0:00:01]} 2. Nf3 {[%emt 0:00:01]} Nf6 {[%emt 0:00:01]} 3. Nxe5 {[%emt 0:00:05]} d6 {[%emt 0:00:01]} 4. Nf3 {[%emt 0:00:02]} Nxe4 {[%emt 0:00:01]} 5. d4 {[%emt 0:00:01]} d5 {[%emt 0:00:01]} 6. Bd3 {[%emt 0:00:01]} Nc6 {[%emt 0:00:01]} 7. O-O {[%emt 0:00:11]} Be7 {[%emt 0:00:01]} 8. c4 {[%emt 0:00:01]} Nb4 {[%emt 0:00:01]} 9. Be2 {[%emt 0:00:04]} O-O {[%emt 0:00:02]} 10. Nc3 {[%emt 0:00:02]} Bf5 {[%emt 0:00:02]} 11. a3 {[%emt 0:00:13]} Nxc3 {[%emt 0:00:01]} 12. bxc3 {[%emt 0:00:01]} Nc6 {[%emt 0:00:02]} 13. cxd5 {[%emt 0:00:04]} Qxd5 {[%emt 0:00:02]} 14. Re1 {[%emt 0:00:04] C42: Petroff Defence: 3 Nxe5 and unusual White 3rd moves.} Rfe8 {[%emt 0:00:02]} 15. Bf4 {[%emt 0:00:02]} Rac8 {[%emt 0:00:01]} 16. Bf1 {[%emt 0:00:07] The position is equal.} Bd6 {[%emt 0:00:30]} 17. Rxe8+ {[%emt 0:00:17]} Rxe8 {[%emt 0:00:01]} 18. c4 {[%emt 0:00:02]} Qe4 {[%emt 0:00:02]} 19. Bxd6 {[%emt 0:00:02]} cxd6 {[%emt 0:00:01]} 20. Qd2 {[%emt 0:00:14]} Qc2 {[%emt 0:00:02]} 21. Qf4 {[%emt 0:00:19]} h6 {[%emt 0:00:01]} 22. h3 {[%emt 0:00:11]} Qb2 {[%emt 0:00:48]} 23. Rd1 {[%emt 0:00:06]} Bc2 {[%emt 0:01:19]} 24. Qd2 {[%emt 0:00:26]} Qb3 {[%emt 0:00:10]} 25. Rc1 {[%emt 0:00:12]} Be4 {[%emt 0:00:22] [#]} 26. Rc3 $146 {[%emt 0:00:17]} ({Predecessor:} 26. Re1 Re7 27. Re3 Qb1 28. Re1 {½-½ (28) Belov,V (2595)-Bu,X (2673) Moscow 2010}) 26... Qb6 {[%emt 0:00:08]} 27. Re3 {[%emt 0:00:02]} Re7 {[%emt 0:00:10]} 28. Qe1 {[%emt 0:00:11]} Bxf3 {[%emt 0:00:21]} (28... d5 $11 {and Black has nothing to worry.}) 29. Rxe7 $18 {[%emt 0:00:02]} Nxe7 {[%emt 0:00:01]} 30. Qxe7 $11 {[%emt 0:00:01][%mdl 4096] Endgame KQB-KQB} (30. gxf3 Kf8 $11) 30... Bh5 {[%emt 0:00:05] [#]} (30... Bc6 {was worth a try.}) 31. Bd3 $2 {[%emt 0:00:19]} ({White has to play} 31. c5 $1 $18 {White threatens Bd3 and mate.} dxc5 32. d5) 31... Bg6 {[%emt 0:00:24]} 32. Bxg6 {[%emt 0:00:02]} fxg6 {[%emt 0:00:00] KQ-KQ} 33. Qe4 {[%emt 0:00:01]} Kh7 {[%emt 0:00:16]} 34. h4 {[%emt 0:00:07]} h5 {[%emt 0:00:03]} 35. g4 {[%emt 0:00:02] [#] gxh5 is the strong threat.} Qa5 {[%emt 0:00:33]} 36. c5 {[%emt 0:00:01]} dxc5 {[%emt 0:00:27]} 37. d5 {[%emt 0:00:01]} Qa6 {[%emt 0:00:04]} 38. gxh5 {[%emt 0:00:03]} Qf6 $2 {[%emt 0:00:06]} (38... c4 $11 {and Black is okay.}) 39. Kf1 {[%emt 0:00:05]} Kh6 $2 {[%emt 0:00:02]} (39... c4) 40. hxg6 $2 {[%emt 0:00:05]} (40. Qe6 $18 Qa1+ 41. Kg2 Kxh5 42. d6) 40... Qxg6 {[%emt 0:00:01]} 41. Qe3+ {[%emt 0:00:32]} Kh7 $1 {[%emt 0:00:00]} (41... Kh5 $2 42. d6 $18) 42. Qxc5 {[%emt 0:00:01] aiming for Qd4.} Qd3+ {[%emt 0:00:03]} 43. Ke1 {[%emt 0:00:03] Black must now prevent d6.} (43. Kg2 $5 {[%cal Rd5d6]}) 43... b6 {[%emt 0:00:00]} 44. Qc6 {[%emt 0:00:07]} Qe4+ $1 {[%emt 0:00:03]} 45. Kd2 {[%emt 0:00:01] Hoping for Qc2.} Qd4+ {[%emt 0:00:00]} 46. Kc1 {[%emt 0:00:27]} Qa1+ {[%emt 0:00:04]} 47. Kc2 {[%emt 0:00:02]} Qa2+ {[%emt 0:00:01]} 48. Kd3 {[%emt 0:00:04]} Qb3+ $2 {[%emt 0:00:02][%mdl 8192] White leaves nothing to chance now.} (48... Qxf2 $11 49. d6 Qf1+ 50. Ke3 Qe1+ 51. Kf4 Qxh4+ 52. Ke3 Qg3+ 53. Kd2 (53. Kd4 Qf2+ 54. Ke5 Qf6+ 55. Ke4 Qh4+ 56. Kf5 Qf6+ 57. Ke4 Qe6+ 58. Kd4 Kg6 $11) 53... Qf2+ 54. Kd3 Qg3+ 55. Kc2 (55. Kd4 Qf2+ 56. Ke5 Qf6+ 57. Ke4 Qh4+ 58. Kf5 Qf6+ 59. Ke4 Qh4+ 60. Kf5 Qf6+ 61. Ke4 $11) 55... Qg6+ 56. Kd2 Qg5+ 57. Kd3 Qg3+ 58. Kc4 (58. Kd4 Qf2+ 59. Ke5 Qf6+ 60. Ke4 Qe6+ 61. Kd4 Kg6 $11) 58... Qg4+ 59. Kb5 Qe2+ 60. Kb4 Qe1+ 61. Kb5 Qe2+ 62. Kb4 Qe1+ 63. Kb5 Qe2+) 49. Ke4 $18 {[%emt 0:00:04]} Qb1+ {[%emt 0:00:05]} 50. Ke5 {[%emt 0:00:04] Threatens to win with d6.} ({Weaker is} 50. Kf4 Qh1 $16) 50... Qb2+ {[%emt 0:00:02]} 51. Kd6 {[%emt 0:00:03] And now Kc7 would win.} Qxa3+ {[%emt 0:00:02]} 52. Kc7 $2 {[%emt 0:00:03]} (52. Kd7 {White wants to mate with d6.} Qf8 53. d6) 52... Qe7+ {[%emt 0:00:02]} 53. Kb8 {[%emt 0:00:01] Strongly threatening d6.} Qd8+ {[%emt 0:00:04]} 54. Kxa7 {[%emt 0:00:04]} b5 $2 {[%emt 0:00:02]} (54... Qe7+ $18 55. Kxb6 Qb4+ 56. Qb5 Qd6+ 57. Kb7 Qe7+ 58. Kc6 Qe8+ 59. Kc5 Qe5) 55. d6 {[%emt 0:00:09]} b4 {[%emt 0:00:01]} 56. Qe4+ {[%emt 0:00:02]} (56. Qc2+ $142 Kg8 57. Qc7 Qxh4 58. d7 Qxf2+ 59. Kb8 Qh4 60. d8=Q+ Qxd8+ 61. Qxd8+ Kh7 62. Qb6) 56... Kh6 {[%emt 0:00:03]} 57. Qxb4 {[%emt 0:00:01]} Qd7+ {[%emt 0:00:00]} 58. Kb6 {[%emt 0:00:03]} Qd8+ {[%emt 0:00:01]} 59. Kc5 {[%emt 0:00:07]} Qc8+ {[%emt 0:00:01]} 60. Kd4 {[%emt 0:00:05]} Qg4+ {[%emt 0:00:01]} 61. Kc3 {[%emt 0:00:01]} Qf3+ {[%emt 0:00:03]} 62. Kc2 {[%emt 0:00:01]} Qf5+ {[%emt 0:00:04]} 63. Kc1 {[%emt 0:00:04] Qd2+ would kill now.} Qd5 {[%emt 0:00:03]} 64. Qd2+ {[%emt 0:00:01] Weighted Error Value: White=0.41/Black=0.44} 1-0

[Event "Super United Croatia GCT Blitz 2022"]
[Site "Zagreb"]
[Date "2022.07.24"]
[Round "18"]
[White "Mamedyarov, Shakhriyar"]
[Black "Topalov, Veselin"]
[Result "1-0"]
[ECO "D41"]
[WhiteElo "2759"]
[BlackElo "2728"]
[Annotator "TA"]
[PlyCount "61"]
[EventDate "2022.07.20"]
[EventType "tourn"]
[EventCountry "CRO"]
[SourceTitle "playchess.com"]
[Source "ChessBase"]
[SourceQuality "1"]
[TimeControl "300+2"]

{[%evp 26,61,14,9,2,0,0,0,12,-2,62,42,56,45,113,0,166,81,80,76,85,89,86,52,93,98,97,96,99,77,78,76,791,750,1529,1494,2078,-337]} 1. d4 {[%emt 0:00:00]} d5 {[%emt 0:00:02]} 2. c4 {[%emt 0:00:01]} e6 {[%emt 0:00:03]} 3. Nc3 {[%emt 0:00:05]} Nf6 4. cxd5 {[%emt 0:00:00]} Nxd5 {[%emt 0:00:03]} 5. e4 {[%emt 0:00:02]} Nxc3 {[%emt 0:00:01]} 6. bxc3 {[%emt 0:00:01]} c5 {[%emt 0:00:01]} 7. Nf3 {[%emt 0:00:03]} cxd4 {[%emt 0:00:01]} 8. cxd4 {[%emt 0:00:01]} Bb4+ {[%emt 0:00:01]} 9. Bd2 {[%emt 0:00:01]} Bxd2+ {[%emt 0:00:01]} 10. Qxd2 {[%emt 0:00:01]} O-O {[%emt 0:00:02]} 11. Bc4 {[%emt 0:00:02]} Nd7 {[%emt 0:00:08]} 12. O-O {[%emt 0:00:03]} b6 {[%emt 0:00:01]} 13. Rad1 {[%emt 0:00:01]} Bb7 {[%emt 0:00:01]} 14. Rfe1 {[%emt 0:00:01]} Rc8 {[%emt 0:00:01] D41: Queen's Gambit Declined: Semi-Tarrasch with 5 cxd5.} 15. Bb3 {[%emt 0:00:01]} Re8 {[%emt 0:00:02]} 16. d5 {[%emt 0:00:08]} exd5 {[%emt 0:00:07] The position is equal.} 17. Nd4 $5 {[%emt 0:00:03][%mdl 4] [#] A promising side line.} g6 $146 {[%emt 0:00:17]} (17... Rxe4 $2 18. Rxe4 dxe4 19. Nf5 $18 (19. Ne6 Qe7 $17)) ({Black should play} 17... Nc5 $11) ({Predecessor:} 17... Rc5 18. f3 g6 19. Nc2 Nf6 20. e5 Nd7 21. f4 Qh4 22. Nd4 Qg4 23. Ba4 Re7 {1-0 (46) Mamedyarov,S (2759)-Praggnanandhaa,R (2642) chess24.com INT 2022}) 18. Nb5 $1 $14 {[%emt 0:00:28] Threatens to win with Nd6.} ({Of course not} 18. Bxd5 Bxd5 19. exd5 Nf6 $15) (18. exd5 Nc5 $11) 18... Nc5 {[%emt 0:00:45]} 19. e5 $1 {[%emt 0:00:01]} Ne4 {[%emt 0:00:21] [#]} (19... Rb8 $14) 20. Qf4 {[%emt 0:00:03]} (20. Rxe4 $1 $16 {[%mdl 512]} dxe4 21. Bxf7+ $1 Kxf7 22. Qf4+ Kg8 23. Rxd8 Rcxd8 24. Nd6) 20... Qd7 {[%emt 0:01:15]} (20... Qe7 $1 $11) 21. Nxa7 {[%emt 0:00:10]} ({Stronger than} 21. Qxe4 Qxb5 22. Bxd5 Bxd5 23. Rxd5 Qb2 $11) (21. Rxe4 $1 $18 {has better winning chances.} Qxb5 22. Ba4) 21... Ra8 $16 {[%emt 0:00:03] And now ...Nc5 would win.} 22. Rxe4 {[%emt 0:00:21][%cal Be1e4,Be4e3,Be3f3][%mdl 32] Ba4 is the strong threat.} Rxa7 {[%emt 0:00:01]} 23. h4 {[%emt 0:00:03][%cal Bh2h4,Bh4h5,Bh5h6][%mdl 32]} Ra5 {[%emt 0:00:28]} 24. Re3 {[%emt 0:00:05][%cal Oh4h5]} Qe7 {[%emt 0:00:11]} 25. h5 {[%emt 0:00:07]} Rc5 {[%emt 0:00:35]} 26. h6 {[%emt 0:00:37] White is much more active.} Rd8 {[%emt 0:00:03]} 27. Rf3 {[%emt 0:00:26]} Bc8 {[%emt 0:00:05]} 28. Qb4 {[%emt 0:00:08]} Qc7 $2 {[%emt 0:00:07][%mdl 8192] [#]} (28... Qxe5 $16 29. Qxb6 Qd6) 29. Qh4 $1 $18 {[%emt 0:00:04] Qf6 would kill now. White is clearly winning.} Rc6 {[%emt 0:00:25] Against Qf6} 30. Bxd5 {[%emt 0:00:12]} Bf5 {[%emt 0:00:23] [#]} 31. Qxd8+ $4 {[%emt 0:00:11][%mdl 40960] Weighted Error Value: White=0.16 (very precise) /Black=0.33. Loss on time!?} 1-0